[Event "Istanbul Open 2018"]
[Site "Istanbul"]
[Date "2018.09.07"]
[Round "8"]
[White "Can, Ilhan"]
[Black "Ersoy, Emre"]
[Result "1-0"]
[ECO "A30"]
[WhiteElo "1771"]
[BlackElo "1557"]
[Annotator "NA"]
[PlyCount "79"]
[EventDate "2018.09.02"]
[EventType "swiss"]
[EventCountry "TUR"]
[SourceTitle "playchess.com"]
[Source "ChessBase"]
[SourceQuality "1"]
[TimeControl "5400+30"]

1. Nf3 e6 2. g3 Nf6 3. Bg2 b6 4. O-O Bb7 5. c4 c5 6. Nc3 a6 7. h3 Qc7 8. d3 Nc6 9. e4 d6 10. Be3 Be7 11. Rc1 O-O 12. Qd2 Nd7 13. d4 cxd4 14. Nxd4 Nxd4 15. Bxd4 Rac8 16. b3 Bf6 17. Be3 Rfd8 {[%emt 1:32:31]} 18. f3 {[%emt 0:45:00]} d5 {[%emt 0:00:30]} 19. exd5 {[%emt 0:00:30]} Qxg3 {[%emt 0:00:30]} 20. Ne4 {[%emt 0:00:30]} Qg6 {[%emt 0:00:30]} 21. Nd6 {[%emt 0:00:30]} Rc7 {[%emt 0:00:30]} 22. Nxb7 {[%emt 0:00:30]} Rxb7 {[%emt 0:00:30]} 23. dxe6 {[%emt 0:00:30]} fxe6 {[%emt 0:01:45]} 24. Qc2 {[%emt 0:06:30]} Qg3 {[%emt 0:01:45]} 25. Qf2 {[%emt 0:01:30]} Qb8 {[%emt 0:02:07]} 26. f4 {[%emt 0:00:30]} Rc7 {[%emt 0:00:31]} 27. f5 {[%emt 0:01:30]} e5 {[%emt 0:00:28]} 28. Bd5+ {[%emt 0:01:30]} Kh8 {[%emt 0:00:28]} 29. Rcd1 {[%emt 0:01:30]} Nc5 {[%emt 0:01:16]} 30. b4 {[%emt 0:00:30]} Na4 {[%emt 0:00:39]} 31. Qc2 {[%emt 0:03:30]} b5 {[%emt 0:00:14]} 32. c5 {[%emt 0:00:30]} Rcd7 {[%emt 0:00:33]} 33. Be6 {[%emt 0:00:30]} Rxd1 {[%emt 0:00:44]} 34. Rxd1 {[%emt 0:00:30]} Rxd1+ {[%emt 0:00:51]} 35. Qxd1 {[%emt 0:00:00]} e4 {[%emt 0:00:29]} 36. Qd6 {[%emt 0:00:00]} Be5 {[%emt 0:00:33]} 37. Qxb8+ {[%emt 0:00:30]} Bxb8 {[%emt 0:00:05]} 38. Bd4 {[%emt 0:00:00]} Bf4 {[%emt 0:00:57]} 39. f6 {[%emt 0:00:00]} Bh6 {[%emt 0:00:30]} 40. f7 {[%emt 0:00:30]} 1-0

[Event "Istanbul Open 2018"]
[Site "Istanbul"]
[Date "2018.09.07"]
[Round "8"]
[White "Sen, Irem"]
[Black "Gezici, Omer Ata"]
[Result "*"]
[ECO "D11"]
[WhiteElo "1670"]
[BlackElo "1736"]
[Annotator "NA RC"]
[PlyCount "54"]
[EventDate "2018.09.02"]
[EventType "swiss"]
[EventCountry "TUR"]
[SourceTitle "playchess.com"]
[Source "ChessBase"]
[SourceQuality "1"]
[TimeControl "5400+30"]

1. d4 {[%emt 0:00:30]} d5 {[%emt 0:00:30]} 2. Nf3 {[%emt 0:00:00]} Nf6 {[%emt 0:00:00]} 3. c4 {[%emt 0:00:00]} c6 {[%emt 0:00:00]} 4. Nbd2 {[%emt 0:00:30]} Bf5 {[%emt 0:00:30]} 5. Nh4 {[%emt 0:00:00]} Be4 {[%emt 0:00:30]} 6. f3 {[%emt 0:00:00]} Bg6 {[%emt 0:00:30]} 7. Qb3 {[%emt 0:01:30]} Qc7 {[%emt 0:00:30]} 8. g4 {[%emt 0:01:30]} e6 {[%emt 0:07:30]} 9. g5 {[%emt 0:02:30]} Nfd7 {[%emt 0:04:30]} 10. e4 {[%emt 0:02:30]} dxe4 {[%emt 0:04:30]} 11. Nxg6 {[%emt 0:00:30]} hxg6 {[%emt 0:00:30]} 12. Nxe4 {[%emt 0:00:30]} Na6 {[%emt 0:22:30]} 13. c5 {[%emt 0:07:30]} Naxc5 {[%emt 0:09:30]} 14. dxc5 {[%emt 0:03:30]} Nxc5 {[%emt 0:00:30]} 15. Nxc5 {[%emt 0:00:30]} Bxc5 {[%emt 0:00:00]} 16. Qc3 {[%emt 0:15:30]} Qb6 {[%emt 0:05:00]} 17. Bd2 {[%emt 0:02:30]} Bf2+ {[%emt 0:04:30]} 18. Kd1 {[%emt 0:02:30]} O-O-O {[%emt 0:00:30]} 19. Kc2 {[%emt 0:02:30]} Bg3 {[%emt 0:09:30]} 20. h3 {[%emt 0:10:30]} Rd7 {[%emt 0:07:30]} 21. Be3 {[%emt 0:04:30]} Qc7 {[%emt 0:01:30]} 22. Be2 {[%emt 0:01:30]} Be5 {[%emt 0:03:06]} 23. Qb4 {[%emt 0:06:30]} c5 {[%emt 0:01:35]} 24. Qe4 {[%emt 0:07:30]} Bd4 {[%emt 0:01:56]} 25. Rad1 {[%emt 0:02:30]} Qg3 {[%emt 0:01:34]} 26. Bxd4 {[%emt 0:04:49]} Rh4 {[%emt 0:01:39]} 27. Qe5 {[%emt 0:01:47]} Qg2 {[%emt 0:01:26]} *

[Event "Istanbul Open 2018"]
[Site "Istanbul"]
[Date "2018.09.07"]
[Round "8"]
[White "Mete, Burak"]
[Black "Acar, Cengiz Can"]
[Result "1/2-1/2"]
[ECO "B01"]
[WhiteElo "1648"]
[BlackElo "1755"]
[Annotator "NA"]
[PlyCount "51"]
[EventDate "2018.09.02"]
[EventType "swiss"]
[EventCountry "TUR"]
[SourceTitle "playchess.com"]
[Source "ChessBase"]
[SourceQuality "1"]
[TimeControl "5400+30"]

1. e4 d5 2. exd5 Qxd5 3. Nc3 Qd6 4. Nf3 c6 5. g3 Nf6 6. d4 Bg4 7. Bg2 e6 8. O-O Nbd7 9. a3 Qc7 10. Qd3 Bd6 11. Ne4 Nxe4 12. Qxe4 Nf6 13. Qe3 O-O 14. c4 c5 15. dxc5 Bxc5 16. Qb3 b6 17. Bf4 Bd6 {[%emt 1:14:30]} 18. Bxd6 {[%emt 1:04:00]} Qxd6 {[%emt 0:00:30]} 19. h3 {[%emt 0:00:30]} Bh5 {[%emt 0:00:30]} 20. g4 {[%emt 0:00:30]} Bg6 {[%emt 0:00:30]} 21. Rad1 {[%emt 0:00:30]} Qc5 {[%emt 0:00:30]} 22. Rfe1 {[%emt 0:00:30]} Be4 {[%emt 0:00:30]} 23. Qe3 {[%emt 0:01:30]} Qxe3 {[%emt 0:08:45]} 24. Rxe3 {[%emt 0:00:30]} h6 {[%emt 0:00:02]} 25. Ne5 {[%emt 0:03:30]} Bxg2 {[%emt 0:00:55]} 26. Kxg2 {[%emt 0:00:00]} 1/2-1/2

[Event "Istanbul Open 2018"]
[Site "Istanbul"]
[Date "2018.09.07"]
[Round "8"]
[White "Tahaoglu, Erkin"]
[Black "Kocer, Ahmet Doruk"]
[Result "0-1"]
[ECO "D00"]
[WhiteElo "1613"]
[BlackElo "1635"]
[Annotator "NA RC"]
[PlyCount "122"]
[EventDate "2018.09.02"]
[EventType "swiss"]
[EventCountry "TUR"]
[SourceTitle "playchess.com"]
[Source "ChessBase"]
[SourceQuality "1"]
[TimeControl "5400+30"]

1. d4 d5 2. Bf4 Nf6 3. e3 c5 4. Nd2 Nc6 5. c3 Qb6 6. Qb3 c4 7. Qc2 e6 8. Be2 Be7 9. Ngf3 Qa5 10. O-O b5 11. Ne5 Nxe5 12. dxe5 Nd7 13. e4 Nc5 14. b4 Qa4 15. Qb1 Nd7 16. exd5 exd5 17. Nf3 Nf8 18. Nd4 Ne6 19. Be3 Nxd4 20. Bxd4 Be6 21. Bd1 Qa3 22. f4 g6 23. Bc2 O-O-O 24. Qe1 Kb8 25. f5 gxf5 26. Bxf5 h5 27. Qe3 Rhg8 28. Qh3 Qb2 29. Bxe6 fxe6 30. Rab1 Qc2 31. Rbc1 Qg6 32. a4 bxa4 33. Ra1 Rd7 34. Rxa4 Bd8 35. Rfa1 Rgg7 36. R4a2 h4 {[%emt 1:46:42]} 37. b5 {[%emt 1:28:31]} Rb7 {[%emt 0:00:31]} 38. Qe3 {[%emt 0:00:30]} a5 {[%emt 0:00:30]} 39. b6 {[%emt 0:00:30]} Rg8 {[%emt 0:00:30]} 40. Rf2 {[%emt 0:00:30]} Rbg7 {[%emt 0:00:30]} 41. Qe2 {[%emt 0:00:30]} Kb7 {[%emt 0:00:30]} 42. Rxa5 {[%emt 0:00:30]} Qb1+ {[%emt 0:00:30]} 43. Qf1 {[%emt 0:00:30]} Qe4 {[%emt 0:00:30]} 44. Ra7+ {[%emt 0:00:30]} Kc6 {[%emt 0:00:24]} 45. Rxg7 {[%emt 0:01:22]} Rxg7 {[%emt 0:00:30]} 46. Qe2 {[%emt 0:01:16]} Qxe2 {[%emt 0:00:24]} 47. Rxe2 {[%emt 0:00:01]} Bxb6 {[%emt 0:00:00]} 48. Bxb6 {[%emt 0:01:00]} Kxb6 {[%emt 0:00:08]} 49. Rd2 {[%emt 0:01:25]} Rg5 {[%emt 0:01:01]} 50. Re2 {[%emt 0:00:41]} h3 {[%emt 0:00:15]} 51. g3 {[%emt 0:00:23]} Rf5 {[%emt 0:00:01]} 52. Re3 {[%emt 0:00:55]} Kc5 {[%emt 0:00:30]} 53. g4 {[%emt 0:00:25]} Rg5 {[%emt 0:00:01]} 54. Kf2 {[%emt 0:00:38]} Rxg4 {[%emt 0:00:08]} 55. Rxh3 {[%emt 0:00:13]} d4 {[%emt 0:00:50]} 56. Kf3 {[%emt 0:01:27]} d3 {[%emt 0:00:45]} 57. Rh8 {[%emt 0:00:48]} Rg7 {[%emt 0:00:25]} 58. Rd8 {[%emt 0:01:41]} Rh7 {[%emt 0:00:21]} 59. Kg3 {[%emt 0:00:51]} Rh5 {[%emt 0:00:20]} 60. h4 {[%emt 0:03:53]} Rxe5 {[%emt 0:00:10]} 61. Kg4 {[%emt 0:00:02]} Rd5 {[%emt 0:00:46]} 0-1

[Event "Istanbul Open 2018"]
[Site "Istanbul"]
[Date "2018.09.07"]
[Round "8"]
[White "Pektas, Gokdeniz"]
[Black "Ocakacan, Deniz"]
[Result "0-1"]
[ECO "D87"]
[WhiteElo "1602"]
[BlackElo "1650"]
[Annotator "NA"]
[PlyCount "76"]
[EventDate "2018.09.02"]
[EventType "swiss"]
[EventCountry "TUR"]
[SourceTitle "playchess.com"]
[Source "ChessBase"]
[SourceQuality "1"]
[TimeControl "5400+30"]

1. d4 Nf6 2. c4 g6 3. Nc3 d5 4. cxd5 Nxd5 5. e4 Nxc3 6. bxc3 Bg7 7. Bc4 c5 8. Be3 Nc6 9. Ne2 O-O 10. Rc1 Qc7 11. h4 Rd8 12. h5 Ne5 13. Bf4 b5 14. Bd5 Rb8 15. hxg6 hxg6 16. Bxe5 Bxe5 17. dxe5 e6 18. Qd2 exd5 19. Qh6 Qxe5 20. Qh7+ Kf8 21. Qh8+ Qxh8 22. Rxh8+ Ke7 23. Rxd8 Kxd8 24. Rd1 Bb7 {[%emt 1:22:28]} 25. Nf4 {[%emt 0:53:30]} Kd7 {[%emt 0:00:30]} 26. Nxd5 {[%emt 0:00:30]} Bxd5 {[%emt 0:00:30]} 27. Rxd5+ {[%emt 0:00:30]} Kc6 {[%emt 0:00:30]} 28. Re5 {[%emt 0:00:30]} Rb7 {[%emt 0:00:30]} 29. Kd2 {[%emt 0:00:30]} c4 {[%emt 0:00:30]} 30. f4 {[%emt 0:00:30]} Rd7+ {[%emt 0:00:30]} 31. Kc2 {[%emt 0:00:30]} Rd6 {[%emt 0:00:30]} 32. f5 {[%emt 0:00:30]} gxf5 {[%emt 0:01:24]} 33. exf5 {[%emt 0:00:00]} Rd5 {[%emt 0:00:55]} 34. Rxd5 {[%emt 0:18:00]} Kxd5 {[%emt 0:00:05]} 35. a4 {[%emt 0:00:00]} bxa4 {[%emt 0:04:10]} 36. Kb2 {[%emt 0:00:00]} Ke5 {[%emt 0:01:05]} 37. Ka3 {[%emt 0:00:00]} Kxf5 {[%emt 0:00:13]} 38. Kb4 {[%emt 0:00:00]} a3 {[%emt 0:00:29]} 0-1

[Event "Istanbul Open 2018"]
[Site "Istanbul"]
[Date "2018.09.07"]
[Round "8"]
[White "Topsir, Furkan"]
[Black "Bayramov, Araz"]
[Result "1-0"]
[ECO "B01"]
[WhiteElo "1550"]
[BlackElo "1750"]
[Annotator "NA"]
[PlyCount "83"]
[EventDate "2018.09.02"]
[EventType "swiss"]
[EventCountry "TUR"]
[SourceTitle "playchess.com"]
[Source "ChessBase"]
[SourceQuality "1"]
[TimeControl "5400+30"]

1. e4 d5 2. exd5 Qxd5 3. Nc3 Qa5 4. d4 Nf6 5. Nf3 Bg4 6. Be2 Nc6 7. Bb5 Nd5 8. Bxc6+ bxc6 9. Bd2 Nxc3 10. Bxc3 Qd5 11. Qd3 Bxf3 12. Qxf3 Qxf3 13. gxf3 e6 14. Rg1 O-O-O 15. O-O-O Rd5 16. Rg4 g6 17. Kb1 Bg7 18. Rf4 Rd7 {[%emt 0:36:00]} 19. Rd3 {[%emt 1:38:26]} Rhd8 {[%emt 0:00:30]} 20. b4 {[%emt 0:00:30]} Rf8 {[%emt 0:00:30]} 21. Kb2 {[%emt 0:00:30]} Rd5 {[%emt 0:00:30]} 22. Kb3 {[%emt 0:00:30]} Rh5 {[%emt 0:00:30]} 23. h4 {[%emt 0:00:30]} Bh6 {[%emt 0:00:30]} 24. Re4 {[%emt 0:00:30]} Bg7 {[%emt 0:00:30]} 25. Rf4 {[%emt 0:00:30]} f5 {[%emt 0:00:30]} 26. d5 {[%emt 0:00:30]} Bh6 {[%emt 0:00:30]} 27. Rc4 {[%emt 0:00:30]} cxd5 {[%emt 0:05:30]} 28. Rc6 {[%emt 0:00:05]} Re8 {[%emt 0:03:30]} 29. Be5 {[%emt 0:00:13]} f4 {[%emt 0:27:30]} 30. Rxc7+ {[%emt 0:00:16]} Kd8 {[%emt 0:01:30]} 31. Rxh7 {[%emt 0:00:51]} Rxe5 {[%emt 0:04:30]} 32. Rxh6 {[%emt 0:00:43]} Re7 {[%emt 0:00:00]} 33. Rxg6 {[%emt 0:00:14]} Rh5 {[%emt 0:02:00]} 34. Rg4 {[%emt 0:00:27]} Rf7 {[%emt 0:00:30]} 35. Rd4 {[%emt 0:00:48]} Rhf5 {[%emt 0:00:30]} 36. c4 {[%emt 0:00:31]} Kc7 {[%emt 0:00:00]} 37. cxd5 {[%emt 0:00:11]} exd5 {[%emt 0:00:00]} 38. Rg5 {[%emt 0:01:26]} Kd6 {[%emt 0:00:30]} 39. Rg6+ {[%emt 0:00:26]} Ke5 {[%emt 0:02:30]} 40. Rd1 {[%emt 0:00:13]} Rh7 {[%emt 0:00:00]} 41. Re1+ {[%emt 0:01:04]} Kd4 {[%emt 0:00:00]} 42. Rge6 {[%emt 0:00:19]} 1-0

[Event "Istanbul Open 2018"]
[Site "Istanbul"]
[Date "2018.09.07"]
[Round "8"]
[White "Gulceken, Sumeyye"]
[Black "Hakkaki Fard, Pedram"]
[Result "1/2-1/2"]
[ECO "D27"]
[WhiteElo "1549"]
[BlackElo "1815"]
[Annotator "NA RC"]
[PlyCount "85"]
[EventDate "2018.09.02"]
[EventType "swiss"]
[EventCountry "TUR"]
[SourceTitle "playchess.com"]
[Source "ChessBase"]
[SourceQuality "1"]
[TimeControl "5400+30"]

1. d4 d5 2. c4 dxc4 3. Nf3 c5 4. e3 Nf6 5. Bxc4 e6 6. Nc3 a6 7. O-O b5 8. Be2 Nc6 9. a3 cxd4 10. Nxd4 Nxd4 11. exd4 Bb7 12. Be3 Be7 13. Rc1 O-O 14. Bf3 Qd7 15. Qe2 Rfd8 16. Rfd1 h6 17. Bf4 Rac8 18. Be5 Bxf3 19. Qxf3 Qc6 20. Qxc6 Rxc6 21. Nd5 Rxc1 22. Nxe7+ Kf8 23. Ng6+ fxg6 24. Rxc1 Ke7 25. f3 a5 26. Kf2 a4 27. Rc5 Rd5 28. Ke2 g5 29. Kd3 Rxc5 30. dxc5 Kd7 31. Kd4 Kc6 32. g3 h5 33. h3 Ne8 {[%emt 1:45:36]} 34. f4 {[%emt 1:31:40]} gxf4 {[%emt 0:00:30]} 35. gxf4 {[%emt 0:00:30]} Nf6 {[%emt 0:00:30]} 36. h4 {[%emt 0:00:30]} Ne8 {[%emt 0:00:30]} 37. Bb8 {[%emt 0:00:30]} Nf6 {[%emt 0:00:30]} 38. Bd6 {[%emt 0:00:30]} Kd7 {[%emt 0:00:31]} 39. Ke5 {[%emt 0:11:52]} Ng4+ {[%emt 0:00:05]} 40. Ke4 {[%emt 0:00:00]} g6 {[%emt 0:00:18]} 41. Be5 {[%emt 0:00:00]} Kc6 {[%emt 0:00:55]} 42. Bd4 {[%emt 0:00:00]} Kd7 {[%emt 0:00:03]} 43. Be5 {[%emt 0:00:00]} 1/2-1/2

[Event "Istanbul Open 2018"]
[Site "Istanbul"]
[Date "2018.09.07"]
[Round "8"]
[White "Kalyoncuoglu, Naci Can"]
[Black "Yildiz, Erhan"]
[Result "0-1"]
[ECO "C44"]
[WhiteElo "1164"]
[BlackElo "1777"]
[Annotator "NA RC"]
[PlyCount "104"]
[EventDate "2018.09.02"]
[EventType "swiss"]
[EventCountry "TUR"]
[SourceTitle "playchess.com"]
[Source "ChessBase"]
[SourceQuality "1"]
[TimeControl "5400+30"]

1. e4 e5 2. d4 exd4 3. Bc4 Nc6 4. Nf3 Bc5 5. c3 d3 6. Qxd3 d6 7. Bg5 Nge7 8. O-O O-O 9. Rd1 Bg4 10. Nbd2 h6 11. Be3 Bb6 12. Bd4 Nxd4 13. cxd4 d5 14. Bb3 c6 15. h3 Bh5 16. g4 Bg6 17. Ne5 dxe4 18. Nxe4 Bh7 19. f4 Qc7 20. Kh1 Rad8 21. Qe3 Nd5 22. Bxd5 Rxd5 23. Nc3 Rdd8 24. Na4 Bc2 25. Nxb6 Bxd1 26. Nbd7 Rfe8 27. Rxd1 Rxd7 {[%emt 1:26:47]} 28. Rg1 {[%emt 1:42:35]} Rd5 {[%emt 0:00:30]} 29. g5 {[%emt 0:00:30]} h5 {[%emt 0:00:30]} 30. Qf3 {[%emt 0:00:30]} g6 {[%emt 0:00:30]} 31. f5 {[%emt 0:00:30]} Rxd4 {[%emt 0:00:30]} 32. Nxg6 {[%emt 0:00:30]} fxg6 {[%emt 0:00:30]} 33. fxg6 {[%emt 0:00:30]} Qe7 {[%emt 0:00:30]} 34. Kh2 {[%emt 0:00:30]} Qe2+ {[%emt 0:00:30]} 35. Qxe2 {[%emt 0:00:30]} Rxe2+ {[%emt 0:00:30]} 36. Kg3 {[%emt 0:00:30]} Rxb2 {[%emt 0:00:30]} 37. h4 {[%emt 0:00:30]} Rxa2 {[%emt 0:00:30]} 38. Re1 {[%emt 0:00:30]} Ra3+ {[%emt 0:00:30]} 39. Kg2 {[%emt 0:00:30]} Rg4+ {[%emt 0:00:30]} 40. Kf2 {[%emt 0:00:30]} Rxh4 {[%emt 0:00:30]} 41. Kg2 {[%emt 0:00:30]} Rg4+ {[%emt 0:00:16]} 42. Kh2 {[%emt 0:00:35]} Rxg5 {[%emt 0:00:19]} 43. g7 {[%emt 0:00:08]} Rxg7 {[%emt 0:00:26]} 44. Rf1 {[%emt 0:00:22]} Rd7 {[%emt 0:00:22]} 45. Re1 {[%emt 0:01:06]} Rd2+ {[%emt 0:01:16]} 46. Kh1 {[%emt 0:00:08]} Rb3 {[%emt 0:00:50]} 47. Kg1 {[%emt 0:00:46]} a5 {[%emt 0:00:25]} 48. Ra1 {[%emt 0:00:11]} a4 {[%emt 0:00:18]} 49. Kh1 {[%emt 0:00:13]} a3 {[%emt 0:00:23]} 50. Rg1+ {[%emt 0:00:03]} Kh7 {[%emt 0:00:24]} 51. Rf1 {[%emt 0:00:05]} a2 {[%emt 0:00:34]} 52. Rf7+ {[%emt 0:00:09]} Kg6 {[%emt 0:00:11]} 0-1

[Event "Istanbul Open 2018"]
[Site "Istanbul"]
[Date "2018.09.08"]
[Round "9"]
[White "Bagaturov, Giorgi"]
[Black "Guven, Oguz Kagan"]
[Result "1-0"]
[ECO "D55"]
[WhiteElo "2396"]
[BlackElo "2022"]
[Annotator "NA"]
[PlyCount "69"]
[EventDate "2018.09.02"]
[EventType "swiss"]
[EventCountry "TUR"]
[SourceTitle "playchess.com"]
[Source "ChessBase"]
[SourceQuality "1"]
[TimeControl "5400+30"]

1. c4 {[%emt 0:00:30]} Nf6 {[%emt 0:05:30]} 2. Nc3 {[%emt 0:00:00]} e6 {[%emt 0:00:00]} 3. Nf3 {[%emt 0:04:00]} d5 {[%emt 0:01:00]} 4. d4 {[%emt 0:00:30]} Be7 {[%emt 0:00:30]} 5. Bg5 {[%emt 0:00:30]} O-O {[%emt 0:00:30]} 6. e3 {[%emt 0:00:30]} h6 {[%emt 0:00:00]} 7. Bxf6 {[%emt 0:05:30]} Bxf6 {[%emt 0:00:00]} 8. Rc1 {[%emt 0:01:30]} c6 {[%emt 0:06:30]} 9. Be2 {[%emt 0:00:30]} Nd7 $11 {[%emt 0:01:30] LiveBook: 16 Games} 10. O-O {[%emt 0:00:30]} dxc4 {[%emt 0:00:30]} 11. Bxc4 {[%emt 0:00:30]} e5 {[%emt 0:00:30]} 12. h3 {[%emt 0:00:30]} exd4 {[%emt 0:04:30]} 13. exd4 {[%emt 0:00:30]} Nb6 {[%emt 0:01:30]} 14. Bb3 {[%emt 0:00:30]} Bf5 {[%emt 0:03:30]} 15. Re1 {[%emt 0:04:30]} Qd6 {[%emt 0:15:30]} 16. Ne5 {[%emt 0:03:30]} Bxe5 {[%emt 0:14:30]} 17. Rxe5 {[%emt 0:12:30]} Bh7 {[%emt 0:03:30]} 18. Re3 {[%emt 0:05:30]} Rad8 {[%emt 0:00:30]} 19. Qf3 {[%emt 0:06:30]} Rd7 {[%emt 0:13:30]} 20. Rd1 {[%emt 0:09:30]} Re7 {[%emt 0:06:30]} 21. d5 {[%emt 0:04:30]} Rxe3 {[%emt 0:04:59]} 22. Qxe3 {[%emt 0:00:30]} Bg6 {[%emt 0:04:35]} 23. dxc6 {[%emt 0:22:38]} Qxc6 {[%emt 0:00:01]} 24. Qf4 {[%emt 0:00:44]} Qc5 {[%emt 0:07:41]} 25. Qf3 {[%emt 0:01:39]} Qc7 {[%emt 0:02:35]} 26. Nb5 {[%emt 0:04:15]} Qe5 {[%emt 0:00:59]} 27. Nd6 {[%emt 0:01:05]} Qxb2 {[%emt 0:01:02]} 28. Qxb7 {[%emt 0:01:18]} Qa3 {[%emt 0:01:30]} 29. Qe7 {[%emt 0:01:17]} a5 {[%emt 0:00:34]} 30. Re1 {[%emt 0:00:14]} Ra8 {[%emt 0:00:30]} 31. Bxf7+ {[%emt 0:01:05]} Bxf7 {[%emt 0:00:16]} 32. Qxf7+ {[%emt 0:00:06]} Kh8 {[%emt 0:00:04]} 33. Ne8 {[%emt 0:01:25]} Qc3 {[%emt 0:00:22]} 34. Re7 {[%emt 0:00:18]} Nd5 {[%emt 0:00:19]} 35. Qf8+ {[%emt 0:00:06]} 1-0

[Event "Istanbul Open 2018"]
[Site "Istanbul"]
[Date "2018.09.08"]
[Round "9"]
[White "Mohannad, Farhan"]
[Black "Ozveren, Ali Bulent"]
[Result "1-0"]
[ECO "E17"]
[WhiteElo "2201"]
[BlackElo "1849"]
[Annotator "NA"]
[PlyCount "99"]
[EventDate "2018.09.02"]
[EventType "swiss"]
[EventCountry "TUR"]
[SourceTitle "playchess.com"]
[Source "ChessBase"]
[SourceQuality "1"]
[TimeControl "5400+30"]

1. d4 {[%emt 0:00:30]} Nf6 {[%emt 0:01:30]} 2. c4 {[%emt 0:00:00]} e6 {[%emt 0:00:00]} 3. Nf3 {[%emt 0:00:00]} b6 {[%emt 0:00:00]} 4. g3 {[%emt 0:00:00]} Bb7 {[%emt 0:00:30]} 5. Bg2 {[%emt 0:00:00]} Be7 {[%emt 0:00:30]} 6. O-O {[%emt 0:00:00]} O-O {[%emt 0:00:30]} 7. Re1 {[%emt 0:00:00]} d5 {[%emt 0:00:00]} 8. cxd5 {[%emt 0:00:30]} exd5 {[%emt 0:02:00]} 9. Nc3 {[%emt 0:00:30]} Re8 {[%emt 0:00:30]} 10. Bf4 {[%emt 0:00:30]} c6 {[%emt 0:03:30]} 11. Rc1 {[%emt 0:01:30]} Nbd7 {[%emt 0:00:30] LiveBook: 9 Games} 12. a3 {[%emt 0:06:30]} Bf8 $14 {[%emt 0:04:30]} 13. Nh4 {[%emt 0:03:30]} g6 {[%emt 0:03:30]} 14. e4 {[%emt 0:20:30]} dxe4 {[%emt 0:00:30]} 15. Nxe4 {[%emt 0:00:00]} Nxe4 {[%emt 0:01:30]} 16. Rxe4 {[%emt 0:00:00]} Nf6 {[%emt 0:09:30]} 17. Rxe8 {[%emt 0:01:30]} Qxe8 {[%emt 0:00:30]} 18. Qd2 {[%emt 0:11:30]} Qd7 {[%emt 0:00:30]} 19. Bg5 {[%emt 0:00:30]} Bg7 {[%emt 0:00:30]} 20. Re1 {[%emt 0:01:30]} Re8 {[%emt 0:03:30]} 21. Rxe8+ {[%emt 0:00:30]} Nxe8 {[%emt 0:01:30]} 22. Nf3 {[%emt 0:03:30]} Qe6 {[%emt 0:09:30]} 23. Bh6 {[%emt 0:02:30]} Bf6 {[%emt 0:03:30]} 24. h4 {[%emt 0:07:30]} Nd6 {[%emt 0:10:30]} 25. Ne5 {[%emt 0:05:30]} Nc4 {[%emt 0:08:30]} 26. Nxc4 {[%emt 0:00:30]} Qxc4 {[%emt 0:00:00]} 27. Qf4 {[%emt 0:00:00]} Qe6 {[%emt 0:02:00]} 28. Bh3 {[%emt 0:02:00]} Qe1+ {[%emt 0:06:30]} 29. Kh2 {[%emt 0:00:00]} Bd8 {[%emt 0:00:30]} 30. Qb8 {[%emt 0:05:00]} Qe7 {[%emt 0:00:30]} 31. Qxa7 {[%emt 0:00:30]} c5 {[%emt 0:01:30]} 32. Bg2 {[%emt 0:04:30]} Bxg2 {[%emt 0:02:30]} 33. Qxe7 {[%emt 0:00:30]} Bxe7 {[%emt 0:00:30]} 34. Kxg2 {[%emt 0:00:00]} cxd4 {[%emt 0:00:30]} 35. Kf3 {[%emt 0:01:00]} f5 {[%emt 0:02:30]} 36. Ke2 {[%emt 0:00:30]} b5 {[%emt 0:01:30]} 37. Kd3 {[%emt 0:01:30]} Kf7 {[%emt 0:00:30]} 38. Bc1 {[%emt 0:01:30]} Bf6 {[%emt 0:04:16]} 39. b3 {[%emt 0:01:30]} Ke6 {[%emt 0:00:23]} 40. a4 {[%emt 0:00:00]} bxa4 {[%emt 0:02:31]} 41. bxa4 {[%emt 0:00:00]} Kd5 {[%emt 0:00:24]} 42. Bf4 {[%emt 0:01:30]} Bd8 {[%emt 0:01:54]} 43. Bg5 {[%emt 0:02:30]} Bb6 {[%emt 0:00:41]} 44. Bf6 {[%emt 0:00:00]} Ba7 {[%emt 0:02:09]} 45. a5 {[%emt 0:00:00]} Bc5 {[%emt 0:01:55]} 46. Bd8 {[%emt 0:01:30]} Bb4 {[%emt 0:04:11]} 47. Bb6 {[%emt 0:00:30]} h5 {[%emt 0:04:08]} 48. a6 {[%emt 0:00:30]} Kc6 {[%emt 0:00:28]} 49. Bxd4 {[%emt 0:00:30]} Bd6 {[%emt 0:00:44]} 50. Be3 {[%emt 0:00:30]} 1-0

[Event "Istanbul Open 2018"]
[Site "Istanbul"]
[Date "2018.09.08"]
[Round "9"]
[White "Abishli, Oghuz"]
[Black "Ozkan, Taha"]
[Result "1-0"]
[ECO "D30"]
[WhiteElo "2099"]
[BlackElo "1997"]
[Annotator "NA"]
[PlyCount "77"]
[EventDate "2018.09.02"]
[EventType "swiss"]
[EventCountry "TUR"]
[SourceTitle "playchess.com"]
[Source "ChessBase"]
[SourceQuality "1"]
[TimeControl "5400+30"]

1. d4 {[%emt 0:00:30]} d5 {[%emt 0:00:30]} 2. c4 {[%emt 0:00:00]} c6 {[%emt 0:00:00]} 3. e3 {[%emt 0:00:00]} e6 {[%emt 0:00:00]} 4. Nf3 {[%emt 0:00:00]} Bd6 {[%emt 0:00:00]} 5. b3 {[%emt 0:00:00]} f5 {[%emt 0:00:00] LiveBook: 64 Partien} 6. g3 {[%emt 0:01:30]} Nf6 {[%emt 0:00:30]} 7. Bg2 {[%emt 0:00:30]} O-O {[%emt 0:00:30]} 8. O-O {[%emt 0:00:00]} Nbd7 {[%emt 0:00:30]} 9. Ba3 {[%emt 0:00:00]} Bxa3 {[%emt 0:00:30]} 10. Nxa3 {[%emt 0:00:30]} Qe7 {[%emt 0:01:30]} 11. Nc2 {[%emt 0:01:30]} b6 {[%emt 0:00:30]} 12. Ne5 {[%emt 0:19:30]} Bb7 {[%emt 0:06:30]} 13. b4 {[%emt 0:03:30]} Nxe5 {[%emt 0:13:30]} 14. dxe5 {[%emt 0:00:00]} Ng4 {[%emt 0:04:30]} 15. cxd5 {[%emt 0:02:00]} cxd5 $11 {[%emt 0:00:00]} 16. f4 {[%emt 0:00:30]} Rac8 {[%emt 0:01:00]} 17. Re1 {[%emt 0:05:30]} Rc3 {[%emt 0:07:30]} 18. h3 {[%emt 0:01:30]} Nh6 {[%emt 0:09:30]} 19. Nd4 {[%emt 0:01:30]} Rfc8 {[%emt 0:05:30]} 20. a3 {[%emt 0:07:30]} Qd7 {[%emt 0:16:30]} 21. Qd2 {[%emt 0:04:30]} R8c4 {[%emt 0:07:30]} 22. Bf1 {[%emt 0:01:30]} Rc7 {[%emt 0:02:30]} 23. Rec1 {[%emt 0:08:30]} Qc8 {[%emt 0:02:30]} 24. Rxc3 {[%emt 0:13:30]} Rxc3 {[%emt 0:00:30]} 25. Nxe6 {[%emt 0:01:30]} Rc2 {[%emt 0:00:00]} 26. Qd3 {[%emt 0:00:30]} Rc3 {[%emt 0:03:59]} 27. Qd4 {[%emt 0:00:30]} Rb3 {[%emt 0:01:30]} 28. Ng5 {[%emt 0:02:30]} Qc2 {[%emt 0:01:07]} 29. Re1 {[%emt 0:00:00]} Rxa3 {[%emt 0:02:26]} 30. e6 {[%emt 0:01:00]} Qc7 {[%emt 0:04:41]} 31. Bg2 {[%emt 0:08:54]} Qd6 {[%emt 0:05:14]} 32. Rc1 {[%emt 0:00:34]} Kf8 {[%emt 0:01:12]} 33. Nxh7+ {[%emt 0:10:58]} Kg8 {[%emt 0:00:05]} 34. Ng5 {[%emt 0:00:18]} Kf8 {[%emt 0:00:05]} 35. Bxd5 {[%emt 0:01:32]} Qxd5 {[%emt 0:01:54]} 36. Rc8+ {[%emt 0:00:31]} Ke7 {[%emt 0:00:21]} 37. Qxg7+ {[%emt 0:00:11]} Nf7 {[%emt 0:00:32]} 38. Qxf7+ {[%emt 0:00:11]} Kd6 {[%emt 0:00:04]} 39. Qc7# {[%emt 0:00:47]} 1-0